bitfinex/quotes_BTCUSD_20241119
["timestamp","ask_amount","ask_price","bid_price","bid_amount"]
[1732016450157,0.1341092,91696.0,91695.0,0.21266727]
[1732016450590,0.0874092,91696.0,91695.0,0.21266727]
[1732016450959,0.0874092,91696.0,91695.0,0.91266727]
[1732016450960,0.0067092,91696.0,91695.0,0.91266727]
[1732016451660,0.0057092,91696.0,91695.0,0.91266727]
[1732016451868,0.0027092,91696.0,91695.0,0.91266727]
[1732016452275,0.0047092,91696.0,91695.0,0.91266727]
[1732016452479,0.00446092,91696.0,91695.0,0.91266727]
[1732016454139,0.00446092,91696.0,91695.0,0.21266727]
[1732016457670,0.00146092,91696.0,91695.0,0.21266727]
[1732016458103,0.00146092,91696.0,91695.0,0.91266727]
[1732016462924,0.00146092,91696.0,91695.0,0.21266727]
[1732016466967,0.00146092,91696.0,91695.0,0.21437667]
[1732016467179,0.00231562,91696.0,91695.0,0.21437667]
[1732016468491,0.01231562,91696.0,91695.0,0.10531967]
[1732016468713,0.14131562,91696.0,91695.0,0.00531967]
[1732016469159,0.14131562,91696.0,91695.0,0.0017094]
[1732016469386,0.14131562,91696.0,91695.0,0.00519765]
[1732016469611,0.38243417,91696.0,91695.0,0.00519765]
[1732016470054,0.39243417,91696.0,91695.0,0.0017094]
[1732016471001,0.39097325,91696.0,91695.0,0.0017094]
[1732016471205,0.39897325,91696.0,91695.0,0.0017094]
[1732016472875,0.28991725,91696.0,91695.0,0.0017094]
[1732016474351,0.39897325,91696.0,91695.0,0.0017094]
[1732016475232,0.28991725,91696.0,91695.0,0.0017094]
[1732016475651,0.28991725,91696.0,91695.0,0.1107664]
[1732016476084,0.28991725,91696.0,91695.0,0.11425477]
[1732016476301,0.28991725,91696.0,91695.0,0.00519777]
[1732016477785,0.27991725,91696.0,91695.0,0.00519777]
[1732016481386,0.27991725,91696.0,91695.0,0.11425477]
[1732016481609,0.1708547,91696.0,91695.0,0.11425477]
[1732016483118,0.1608547,91696.0,91695.0,0.11425477]
[1732016483352,0.1708547,91696.0,91695.0,0.11425477]
[1732016483567,0.1478547,91696.0,91695.0,0.11425477]
[1732016483736,0.1020547,91696.0,91695.0,0.11425477]
[1732016483944,0.0188547,91696.0,91695.0,0.11425477]
[1732016485336,0.0188547,91696.0,91695.0,0.21425477]
[1732016486532,0.0108547,91696.0,91695.0,0.21425477]
[1732016486729,0.0158547,91696.0,91695.0,0.21425477]
[1732016488705,0.1382547,91696.0,91695.0,0.21425477]
[1732016490333,0.1382547,91696.0,91695.0,0.11425477]
[1732016491896,0.0924547,91696.0,91695.0,0.11425477]
[1732016492329,0.0924547,91696.0,91695.0,0.21425477]
[1732016492330,0.0058547,91696.0,91695.0,0.21425477]
[1732016493192,0.0008547,91696.0,91695.0,0.21425477]
[1732016493438,0.0008547,91696.0,91695.0,0.23825477]
[1732016493643,0.0008547,91696.0,91695.0,0.22225477]
[1732016493840,0.0008547,91696.0,91695.0,0.21425477]
[1732016494018,0.0008547,91696.0,91695.0,0.91425477]
[1732016494214,0.0008547,91696.0,91695.0,0.92225477]
[1732016495258,0.0008547,91696.0,91695.0,0.92625477]
[1732016495486,0.0008547,91696.0,91695.0,0.6536881]
[1732016495692,0.0008547,91696.0,91695.0,0.65705508]
[1732016495952,0.0008547,91696.0,91695.0,0.76611208]
[1732016496583,0.0008547,91696.0,91695.0,0.12442398]
[1732016498091,0.0008547,91696.0,91695.0,0.809057]
[1732016498327,0.0008547,91696.0,91695.0,0.81229447]
[1732016498744,0.0008547,91696.0,91695.0,0.91229447]
[1732016499609,0.0008547,91696.0,91695.0,0.21229447]
[1732016500249,0.0018547,91696.0,91695.0,0.21229447]
[1732016501091,0.0018547,91696.0,91695.0,0.91229447]
[1732016501204,0.0048547,91696.0,91695.0,0.91229447]
[1732016501410,0.0038547,91696.0,91695.0,0.91229447]
[1732016501614,0.0028547,91696.0,91695.0,0.91229447]
[1732016501835,0.0068547,91696.0,91695.0,0.91229447]
[1732016502098,0.0008547,91696.0,91695.0,0.91400387]
[1732016502475,0.0008547,91696.0,91695.0,0.91600387]
[1732016503095,0.0008547,91696.0,91695.0,0.21600387]
[1732016503498,0.0008547,91696.0,91695.0,0.22300387]
[1732016504286,0.0008547,91696.0,91695.0,0.33206642]
[1732016507032,0.0008547,91696.0,91695.0,1.03206642]
[1732016508499,0.0008547,91696.0,91695.0,1.27660948]
[1732016509125,0.0008547,91696.0,91695.0,1.27860948]
[1732016509507,0.0008547,91696.0,91695.0,1.27860534]
[1732016509712,0.0008547,91696.0,91695.0,1.27660534]
[1732016509918,0.0008547,91696.0,91695.0,1.03406642]
[1732016510298,0.0008547,91696.0,91695.0,1.02506642]
[1732016510667,0.0018547,91696.0,91695.0,1.04806642]
[1732016510875,0.0008547,91696.0,91695.0,1.03606642]
[1732016511201,0.0018547,91696.0,91695.0,1.05106642]
[1732016511614,0.0028547,91696.0,91695.0,1.07106642]
[1732016512017,0.0028547,91696.0,91695.0,1.07306642]
[1732016512342,0.0028547,91696.0,91695.0,1.07106642]
[1732016514359,0.0004,91709.0,91708.0,0.3708123]
[1732016514557,0.0004,91709.0,91708.0,0.37402837]
[1732016515428,0.0004,91709.0,91708.0,0.38002837]
[1732016516090,0.0004,91709.0,91708.0,0.29914272]
[1732016516429,0.0004,91709.0,91708.0,0.34394739]
[1732016516827,0.0004,91709.0,91708.0,0.35494739]
[1732016518058,0.0004,91709.0,91708.0,0.43583304]
[1732016524384,0.0004,91709.0,91708.0,0.58241868]
[1732016524748,0.0004,91709.0,91708.0,0.69148123]
[1732016525572,0.0004,91709.0,91708.0,1.39148123]
[1732016525771,0.0798,91726.0,91725.0,0.209021]
[1732016525971,0.01,91730.0,91728.0,0.209017]
[1732016526278,0.01,91730.0,91728.0,0.3707883]
[1732016526491,0.01,91730.0,91728.0,0.29309572]
[1732016526685,0.1269,91732.0,91728.0,0.29309572]
[1732016526982,0.1269,91732.0,91728.0,0.37398137]
[1732016527189,0.0061388,91729.0,91728.0,0.37498137]
[1732016527399,0.0131388,91729.0,91728.0,0.42160013]
[1732016528017,0.0071388,91729.0,91728.0,0.42060013]
[1732016528237,0.0001388,91729.0,91728.0,0.52766268]
[1732016528821,0.0031388,91729.0,91728.0,0.52766268]
[1732016530112,0.0001388,91729.0,91728.0,0.52766268]
[1732016530550,0.0001388,91729.0,91728.0,0.52966268]
[1732016530763,0.0001388,91729.0,91728.0,1.22966268]
[1732016531630,0.0001388,91729.0,91728.0,0.52966268]
[1732016532071,0.0017092,91733.0,91732.0,0.109013]
[1732016532316,0.0017092,91733.0,91732.0,0.31807555]
[1732016532527,0.0017092,91733.0,91732.0,0.32121462]
[1732016532977,0.16341916,91741.0,91740.0,0.28988865]
[1732016533412,0.16341916,91741.0,91740.0,0.29302807]
[1732016533639,0.130678,91743.0,91742.0,0.209001]
[1732016534063,0.130678,91743.0,91742.0,0.28988665]
[1732016534269,0.130678,91743.0,91742.0,0.29302607]
[1732016535110,0.134678,91743.0,91742.0,0.29302607]
[1732016535388,0.130678,91743.0,91742.0,0.29302607]
[1732016535596,0.130678,91743.0,91742.0,0.04930656]
[1732016535597,0.144678,91743.0,91742.0,0.04930656]
[1732016535833,0.144678,91743.0,91742.0,0.00413942]
[1732016535834,0.167678,91743.0,91742.0,0.00413942]
[1732016536075,0.167678,91743.0,91742.0,0.001]
[1732016536491,0.167678,91743.0,91742.0,0.0040187]
[1732016536712,0.167678,91743.0,91742.0,0.001]
[1732016536938,0.163678,91743.0,91742.0,0.0030187]
[1732016537162,0.1486,91742.0,91739.0,0.109003]
[1732016537392,0.0485,91740.0,91739.0,0.109003]
[1732016537609,0.1248,91740.0,91739.0,0.109003]
[1732016538061,0.1248,91740.0,91739.0,0.11200851]
[1732016538492,0.1248,91740.0,91739.0,0.11300851]
[1732016538969,0.1348,91740.0,91739.0,0.00300551]
[1732016539195,0.1348,91740.0,91739.0,0.11200951]
[1732016539414,0.1348,91740.0,91739.0,0.109004]
[1732016539630,0.1348,91740.0,91739.0,0.00300551]
[1732016540366,0.1638,91740.0,91739.0,0.001]
[1732016540590,0.1638,91740.0,91739.0,0.00413952]
[1732016540817,0.1638,91740.0,91739.0,0.001]
[1732016541048,0.27286255,91740.0,91739.0,0.00413952]
[1732016541268,0.28286255,91740.0,91739.0,0.001]
[1732016541707,0.39186555,91740.0,91739.0,0.001]
[1732016541921,0.28286255,91740.0,91739.0,0.001]
[1732016542564,0.39186555,91740.0,91739.0,0.001]
[1732016543659,0.28286255,91740.0,91739.0,0.001]
[1732016544518,0.39186555,91740.0,91739.0,0.001]
[1732016544731,0.28286255,91740.0,91739.0,0.001]
[1732016544945,0.40000595,91740.0,91739.0,0.001]
[1732016545120,0.39186555,91740.0,91739.0,0.001]
[1732016545588,0.28286255,91740.0,91739.0,0.001]
[1732016547455,0.28286255,91740.0,91725.0,0.21804]
[1732016547456,0.1282,91738.0,91713.0,0.1]
[1732016547613,0.13206255,91737.0,91728.0,0.109017]
[1732016548030,0.13206255,91737.0,91729.0,0.00313969]
[1732016548229,0.13206255,91737.0,91728.0,0.109017]
[1732016548430,0.13206255,91737.0,91727.0,0.218037]
[1732016548635,0.13206255,91737.0,91728.0,0.00313972]
[1732016549260,0.01,91731.0,91730.0,0.109015]
[1732016549474,0.1282,91738.0,91728.0,0.00313972]
[1732016549683,0.01,91737.0,91730.0,0.218031]
[1732016549898,0.01,91737.0,91736.0,0.109008]
[1732016550099,0.1282,91738.0,91736.0,0.109008]
[1732016550359,0.1282,91738.0,91737.0,0.109007]
[1732016550801,0.1282,91738.0,91737.0,0.11214652]
[1732016552096,0.1382,91738.0,91737.0,0.11214652]
[1732016552508,0.1282,91738.0,91737.0,0.11214652]
[1732016552942,0.1382,91738.0,91737.0,0.11214652]
[1732016553154,0.1452,91738.0,91737.0,0.11314652]
[1732016553780,0.0892,91738.0,91737.0,0.15815023]
[1732016554003,0.0992,91738.0,91737.0,0.15815023]
[1732016555307,0.007,91738.0,91737.0,0.15815023]
[1732016556073,0.0030327,91743.0,91739.0,0.218007]
[1732016556280,0.0030327,91743.0,91742.0,0.109001]
[1732016556892,0.0030327,91743.0,91742.0,0.11214447]
[1732016557319,0.0030327,91743.0,91742.0,0.21214447]
[1732016558011,0.0100327,91743.0,91742.0,0.21314447]
[1732016558849,0.0100327,91743.0,91742.0,0.29392316]
[1732016559107,0.0100327,91743.0,91742.0,0.29292316]
[1732016559108,0.0030327,91743.0,91742.0,0.29292316]
[1732016559584,0.0070327,91743.0,91742.0,0.29592316]
[1732016559801,0.0030327,91743.0,91742.0,0.29592316]
[1732016560008,0.0030327,91743.0,91742.0,0.30392316]
[1732016562191,0.0030327,91743.0,91742.0,0.30092316]
[1732016562408,0.0030327,91743.0,91742.0,0.30192316]
[1732016563060,0.0030327,91743.0,91742.0,0.29392316]
[1732016563754,0.0050327,91743.0,91742.0,0.29292316]
[1732016564192,0.0030327,91743.0,91742.0,0.29292316]
[1732016564419,0.0040327,91743.0,91742.0,0.29292316]
[1732016564622,0.0030327,91743.0,91742.0,0.29292316]
[1732016564852,0.0030327,91743.0,91742.0,0.29592316]
[1732016565278,0.0030327,91743.0,91742.0,0.29292316]
[1732016565983,0.0030327,91743.0,91742.0,0.29892316]
[1732016566404,0.0030327,91743.0,91742.0,0.29292316]
[1732016566621,0.0040327,91743.0,91742.0,0.29292316]
[1732016569307,0.0040327,91743.0,91742.0,0.37370185]
[1732016569526,0.0040327,91743.0,91742.0,0.47149305]
[1732016569724,0.0040327,91743.0,91742.0,0.29292316]
[1732016569950,0.0040327,91743.0,91742.0,0.37370185]
[1732016570362,0.0030327,91743.0,91742.0,0.52034729]
[1732016570565,0.0030327,91743.0,91742.0,0.30092316]
[1732016570766,0.0030327,91743.0,91742.0,0.39970185]
[1732016571217,0.0030327,91743.0,91742.0,0.31892316]
[1732016571440,0.0030327,91743.0,91742.0,0.39970185]
[1732016571658,0.0030327,91743.0,91742.0,0.31892316]
[1732016571892,0.0030327,91743.0,91742.0,0.39970185]
[1732016572105,0.0030327,91743.0,91742.0,0.31892316]
[1732016572331,0.0030327,91743.0,91742.0,0.54634729]
[1732016572546,0.0030327,91743.0,91742.0,0.39970185]
[1732016572982,0.0030327,91743.0,91742.0,0.31892316]
[1732016573243,0.0030327,91743.0,91742.0,0.41670816]
[1732016573454,0.0030327,91743.0,91742.0,0.31892316]
[1732016576537,0.0020327,91743.0,91742.0,0.31892316]
[1732016580419,0.0020327,91743.0,91742.0,0.41668685]
[1732016580771,0.0020327,91743.0,91742.0,0.5257494]
[1732016581051,0.0020327,91743.0,91742.0,0.60652809]
[1732016581576,0.0020327,91743.0,91742.0,1.2087644]
[1732016582003,0.0020327,91743.0,91742.0,1.35537599]
[1732016582159,0.0020327,91743.0,91742.0,1.12798571]
[1732016582360,0.0020327,91743.0,91742.0,1.22572234]
[1732016582570,0.0020327,91743.0,91742.0,1.22571783]
[1732016582772,0.0020327,91743.0,91742.0,1.3064968]
[1732016582981,0.0020327,91743.0,91742.0,1.12798571]
[1732016583180,0.0020327,91743.0,91742.0,1.2087644]
[1732016583416,0.0020327,91743.0,91742.0,1.12798571]
[1732016583771,0.0020327,91743.0,91742.0,1.27458186]
[1732016584296,0.0020327,91743.0,91742.0,1.12798571]
[1732016585073,0.0020327,91743.0,91742.0,0.42798571]
[1732016585515,0.0020327,91743.0,91742.0,0.42461771]
[1732016585716,0.0020327,91743.0,91742.0,0.60310816]
[1732016585947,0.0020327,91743.0,91742.0,0.5053964]
[1732016586162,0.0028871,91743.0,91742.0,0.5053964]
[1732016586802,0.0028871,91743.0,91742.0,0.60310851]
[1732016587215,0.0028871,91743.0,91742.0,0.5053964]
[1732016587426,0.0028871,91743.0,91742.0,1.42740851]
[1732016587635,0.0028871,91743.0,91742.0,1.42540851]
[1732016587860,0.0028871,91743.0,91742.0,1.47426456]
[1732016588066,0.0028871,91743.0,91742.0,1.3276964]
[1732016588276,0.0028871,91743.0,91742.0,0.6276964]
[1732016588791,0.0028871,91743.0,91742.0,0.6296964]
[1732016589006,0.0028871,91743.0,91742.0,0.6276964]
[1732016589213,0.0028871,91743.0,91742.0,0.6296964]
[1732016589441,0.0028871,91743.0,91742.0,0.6276964]
[1732016589894,0.0028871,91743.0,91742.0,0.57118382]
[1732016590107,0.0028871,91743.0,91742.0,0.42461771]
[1732016590320,0.0028871,91743.0,91742.0,0.5053964]
[1732016590760,0.0028871,91743.0,91742.0,0.42461771]
[1732016591027,0.0028871,91743.0,91742.0,0.5053964]
[1732016591432,0.0028871,91743.0,91742.0,1.35196251]
[1732016591855,0.0028871,91743.0,91742.0,1.44965754]
[1732016592085,0.0028871,91743.0,91742.0,0.5053964]
[1732016592327,0.0028871,91743.0,91742.0,0.71083697]
[1732016593209,0.0028871,91743.0,91742.0,0.6404964]
[1732016593437,0.0028871,91743.0,91742.0,1.3404964]
[1732016594150,0.0304,91749.0,91748.0,0.208994]
[1732016594352,0.0304,91749.0,91748.0,0.59431398]
[1732016594572,0.0304,91749.0,91748.0,0.59710603]
[1732016594789,0.0304,91749.0,91748.0,1.10162729]
[1732016595020,0.0304,91749.0,91748.0,1.18440598]
[1732016595235,0.0304,91749.0,91748.0,1.30510603]
[1732016595465,0.0304,91749.0,91748.0,1.11162729]
[1732016595914,0.0304,91749.0,91748.0,1.10962729]
[1732016596186,0.0304,91749.0,91748.0,1.19240598]
[1732016596353,0.0304,91749.0,91748.0,1.48496637]
[1732016596572,0.24611916,91768.0,91752.0,0.110989]
[1732016596794,0.24611916,91768.0,91752.0,1.02005155]
[1732016597022,0.24611916,91768.0,91752.0,1.26720142]
[1732016597239,0.24611916,91768.0,91752.0,1.02284103]
[1732016598368,0.24611916,91768.0,91752.0,1.03284103]
[1732016598809,0.24611916,91768.0,91752.0,1.11361972]
[1732016599037,0.24611916,91768.0,91752.0,1.03284103]
[1732016599270,0.24611916,91768.0,91752.0,1.11361972]
[1732016599963,0.16341916,91768.0,91752.0,1.11361972]
[1732016600170,0.16341916,91768.0,91752.0,1.19201972]
[1732016600603,0.16341916,91768.0,91753.0,0.102]
[1732016600807,0.16341916,91768.0,91767.0,0.28974969]
[1732016601223,0.0004,91769.0,91768.0,0.20897]
[1732016601791,0.0004,91769.0,91768.0,0.21175957]
[1732016603675,0.0014,91769.0,91768.0,0.21175957]
[1732016605528,0.0014,91769.0,91768.0,0.25661078]
[1732016610293,0.0022548,91769.0,91768.0,0.25661078]
[1732016611890,0.0022548,91769.0,91768.0,0.12875215]
[1732016612139,0.0022548,91769.0,91768.0,0.11163521]
[1732016614162,0.0022548,91769.0,91768.0,0.21163521]
[1732016614369,0.1321548,91769.0,91768.0,0.21163521]
[1732016618229,0.1321548,91769.0,91768.0,0.00266521]
[1732016618230,0.22293349,91769.0,91768.0,0.00266521]
[1732016618456,0.46396504,91769.0,91768.0,0.00266521]
[1732016618668,0.46396504,91769.0,91748.0,0.0017096]
[1732016618669,0.01,91749.0,91748.0,0.0017096]
[1732016618886,0.1389,91749.0,91748.0,0.0017096]
[1732016619150,0.1389,91749.0,91748.0,0.11338018]
[1732016619352,0.1389,91749.0,91748.0,0.1107036]
[1732016619794,0.1399,91749.0,91748.0,0.11338018]
[1732016620006,0.1399,91749.0,91748.0,0.15794492]
[1732016620221,0.1389,91749.0,91748.0,0.15794492]
[1732016620429,0.1399,91749.0,91748.0,0.04995092]
[1732016620636,0.1399,91749.0,91748.0,0.15894492]
[1732016620850,0.1399,91749.0,91748.0,0.04995092]
[1732016623230,0.1399,91749.0,91748.0,0.15894492]
[1732016623563,0.1399,91749.0,91748.0,0.04995092]
[1732016625023,0.1399,91749.0,91748.0,0.15894492]
[1732016625391,0.1399,91749.0,91748.0,0.04995092]
[1732016627005,0.1399,91749.0,91748.0,0.00538618]
[1732016627209,0.1399,91749.0,91748.0,0.0027096]
[1732016627210,0.51865364,91749.0,91748.0,0.0027096]
[1732016628807,0.52365364,91749.0,91748.0,0.0027096]
[1732016629268,0.51865364,91749.0,91748.0,0.0027096]
[1732016629484,0.51865364,91749.0,91748.0,0.0017096]
[1732016629485,0.51765364,91749.0,91748.0,0.0017096]
[1732016629673,0.52265364,91749.0,91748.0,0.0027096]
[1732016629921,0.54965364,91749.0,91748.0,0.0047096]
[1732016633141,0.42195555,91749.0,91748.0,0.0047096]
[1732016638869,0.43195555,91749.0,91748.0,0.0047096]
[1732016641080,0.43395555,91749.0,91748.0,0.0047096]
[1732016641713,0.43195555,91749.0,91748.0,0.0047096]
[1732016648471,0.43395555,91749.0,91748.0,0.0047096]
[1732016648669,0.139,91743.0,91742.0,0.0017086]
[1732016648866,0.47779127,91743.0,91742.0,0.0017086]
[1732016649934,0.49479127,91743.0,91742.0,0.0037086]
[1732016650170,0.50479127,91743.0,91742.0,0.0037086]
[1732016651887,0.42396255,91743.0,91742.0,0.0037086]
[1732016664294,0.97916425,91743.0,91742.0,0.0037086]
[1732016665361,0.980064,91743.0,91742.0,0.0037086]
[1732016666151,0.78464606,91743.0,91742.0,0.0037086]
[1732016666632,0.77464606,91743.0,91742.0,0.0037086]
[1732016666785,0.78164606,91743.0,91742.0,0.0037086]
[1732016666994,0.80864606,91743.0,91742.0,0.0047086]
[1732016667210,0.84461641,91743.0,91742.0,0.0047086]
[1732016667408,0.84261641,91743.0,91742.0,0.0047086]
[1732016667809,0.88948994,91743.0,91742.0,0.0047086]
[1732016668175,0.1586,91734.0,91733.0,0.0017088]
[1732016668383,0.67594169,91734.0,91733.0,0.0017088]
[1732016668626,1.0366252,91734.0,91733.0,0.0017088]
[1732016668964,0.62708018,91734.0,91733.0,0.0017088]
[1732016669118,0.62707951,91734.0,91733.0,0.0017088]
[1732016669320,0.62707394,91734.0,91733.0,0.0017088]
[1732016669556,0.64507394,91734.0,91733.0,0.0037088]
[1732016670005,1.16248339,91734.0,91733.0,0.0047088]
[1732016670216,1.16448339,91734.0,91733.0,0.0047088]
[1732016670426,0.96704574,91734.0,91733.0,0.0047088]
[1732016670567,1.00099774,91734.0,91733.0,0.0047088]
[1732016671439,1.00299774,91734.0,91733.0,0.0047088]
[1732016672239,0.96904574,91734.0,91733.0,0.0047088]
[1732016672453,1.00297952,91734.0,91733.0,0.0047088]
[1732016672860,0.96704574,91734.0,91733.0,0.0047088]
[1732016673074,1.00097968,91734.0,91733.0,0.0047088]
[1732016673885,1.00297968,91734.0,91733.0,0.0047088]
[1732016674058,1.29607404,91734.0,91733.0,0.0047088]
[1732016674269,1.29599835,91734.0,91733.0,0.0047088]
[1732016674870,1.29599835,91734.0,91699.0,0.04416421]
[1732016674871,0.01,91700.0,91699.0,0.04416421]
[1732016675079,0.01,91714.0,91696.0,0.0017094]
[1732016675080,0.01,91697.0,91696.0,0.0017094]
[1732016676791,0.011,91697.0,91696.0,0.0027094]
[1732016677843,0.012,91697.0,91696.0,0.0107094]
[1732016679396,0.012,91697.0,91696.0,0.1197654]
[1732016679884,0.012,91697.0,91696.0,0.0107094]
[1732016682107,0.012,91697.0,91696.0,0.1197654]
[1732016683590,0.012,91697.0,91696.0,0.0107094]
[1732016683959,0.012,91697.0,91696.0,0.1197654]
[1732016685492,0.012,91697.0,91696.0,0.0107094]
[1732016687204,0.012,91697.0,91696.0,0.01319376]
[1732016689090,0.012,91697.0,91696.0,0.12224976]
[1732016689752,0.012,91697.0,91696.0,0.01319376]
[1732016690213,0.01175173,91697.0,91696.0,0.01319376]
[1732016690861,0.01175173,91697.0,91696.0,0.12224976]
[1732016691074,0.01175173,91697.0,91696.0,0.01319376]
[1732016700665,0.01175173,91697.0,91696.0,0.12224976]
[1732016705702,0.01175173,91697.0,91696.0,0.01319376]
[1732016706101,0.01175173,91697.0,91696.0,0.12224976]
[1732016707802,0.01175173,91697.0,91696.0,0.33537848]
[1732016707803,0.00175173,91697.0,91696.0,0.33537848]
[1732016708008,0.00175173,91697.0,91696.0,0.25454976]
[1732016709071,0.00175173,91697.0,91696.0,0.17134976]
[1732016710092,0.00175173,91697.0,91696.0,0.27134976]
[1732016714976,0.00175173,91697.0,91696.0,0.35094976]
[1732016716197,0.00260703,91697.0,91696.0,0.35094976]
[1732016724298,0.00260703,91697.0,91696.0,0.0796]
[1732016724509,0.00260703,91697.0,91696.0,0.08198744]
[1732016724970,0.00260703,91697.0,91696.0,0.19104344]
[1732016726352,0.00260703,91697.0,91696.0,0.29104344]
[1732016727698,0.00260703,91697.0,91696.0,0.29275404]
[1732016731945,0.00260703,91697.0,91696.0,0.21315404]
[1732016745678,0.00260703,91697.0,91696.0,0.32221659]
[1732016745901,0.00260703,91697.0,91696.0,0.51817261]
[1732016746362,0.00160703,91697.0,91696.0,0.32221659]
[1732016746596,0.0008553,91697.0,91696.0,0.32221659]
[1732016746851,0.0028553,91697.0,91696.0,0.52015957]
[1732016747298,0.0058553,91697.0,91696.0,0.52015957]
[1732016747516,0.0058553,91697.0,91696.0,0.32421659]
[1732016750195,0.0058553,91697.0,91696.0,0.56916161]
[1732016750424,0.0058553,91697.0,91696.0,0.32421659]
[1732016750656,0.0058553,91697.0,91696.0,0.56914812]
[1732016750873,0.0058553,91697.0,91696.0,0.32421659]
[1732016751776,0.0058553,91697.0,91696.0,0.56914812]
[1732016752469,0.0058553,91697.0,91696.0,0.32421659]
[1732016752703,0.0058553,91697.0,91696.0,0.56914812]
[1732016752935,0.0058553,91697.0,91696.0,0.32421659]
[1732016753592,0.0058553,91697.0,91696.0,0.40504531]
[1732016754243,0.0058553,91697.0,91696.0,0.60100601]
[1732016754677,0.0058553,91697.0,91696.0,0.21515404]
[1732016754929,0.0058553,91697.0,91696.0,0.31313911]
[1732016755133,0.0513553,91697.0,91696.0,0.21515404]
[1732016755562,0.0493553,91697.0,91696.0,0.29398276]
[1732016755802,0.0463553,91697.0,91696.0,0.29398276]
[1732016756010,0.0503553,91697.0,91696.0,0.30898276]
[1732016756519,0.0503553,91697.0,91696.0,0.29398276]
[1732016756520,0.0463553,91697.0,91696.0,0.29398276]
[1732016756900,0.0493553,91697.0,91696.0,0.30698276]
[1732016758214,0.0473553,91697.0,91696.0,0.30098276]
[1732016758429,0.0483553,91697.0,91696.0,0.29998276]
[1732016758647,0.0493553,91697.0,91696.0,0.30698276]
[1732016758890,0.0473553,91697.0,91696.0,0.30098276]
[1732016759326,0.0483553,91697.0,91696.0,0.29998276]
[1732016759555,0.0483553,91697.0,91696.0,0.30698276]
[1732016759795,0.0493553,91697.0,91696.0,0.30698276]
[1732016760909,0.0493553,91697.0,91696.0,0.22615404]
[1732016761119,0.1257553,91697.0,91696.0,0.22615404]
[1732016765335,0.1257553,91697.0,91696.0,0.30698276]
[1732016768583,0.1257553,91697.0,91696.0,0.22615404]
[1732016774565,0.1257553,91697.0,91696.0,0.01709804]
[1732016774566,0.1357553,91697.0,91696.0,0.01709804]
[1732016775441,0.2448093,91697.0,91696.0,0.01709804]
[1732016775710,0.39500886,91697.0,91696.0,0.0147106]
[1732016776146,0.39300886,91697.0,91696.0,0.0087106]
[1732016776353,0.285959,91693.0,91692.0,0.0017096]
[1732016776575,0.48398728,91693.0,91692.0,0.0017096]
[1732016776778,0.49211803,91693.0,91692.0,0.0017096]
[1732016777461,0.5815748,91693.0,91692.0,0.0017096]
[1732016777664,0.49398102,91693.0,91692.0,0.0027096]
[1732016778078,0.48398102,91693.0,91692.0,0.0017096]
[1732016778492,0.60152404,91693.0,91692.0,0.0027096]
[1732016778699,0.62852404,91693.0,91692.0,0.0037096]
[1732016779366,0.53098102,91693.0,91692.0,0.0037096]
[1732016779584,0.50398102,91693.0,91692.0,0.0027096]
[1732016779783,0.51098102,91693.0,91692.0,0.0017096]
[1732016780245,0.53798102,91693.0,91692.0,0.0017096]
[1732016781058,0.53773323,91693.0,91692.0,0.0017096]
[1732016782213,0.45690451,91693.0,91692.0,0.0017096]
[1732016787479,0.44877376,91693.0,91692.0,0.0017096]
[1732016787692,0.45688612,91693.0,91692.0,0.0017096]
[1732016788867,0.34782712,91693.0,91692.0,0.0017096]
[1732016789098,0.45688612,91693.0,91692.0,0.0017096]
[1732016789330,0.34782712,91693.0,91692.0,0.0017096]
[1732016789568,0.45688612,91693.0,91692.0,0.0017096]
[1732016789797,0.44877376,91693.0,91692.0,0.0017096]
[1732016790020,0.45688612,91693.0,91692.0,0.0017096]
[1732016793118,0.34782712,91693.0,91692.0,0.0017096]
[1732016793324,0.45688612,91693.0,91692.0,0.0017096]
[1732016793787,0.45688612,91693.0,91692.0,0.1107696]
[1732016793788,0.18765221,91693.0,91692.0,0.1107696]
[1732016794022,0.1957663,91693.0,91692.0,0.1107696]
[1732016794256,0.1957663,91693.0,91692.0,0.11309542]
[1732016794711,0.1417663,91693.0,91692.0,0.11309542]
[1732016794963,0.1687663,91693.0,91692.0,0.11409542]
[1732016795564,0.1634759,91693.0,91692.0,0.11409542]
[1732016795977,0.1784759,91693.0,91692.0,0.11509542]
[1732016796424,0.1784759,91693.0,91692.0,0.00603542]
[1732016796647,0.1784759,91693.0,91692.0,0.11509542]
[1732016797929,0.1016759,91693.0,91692.0,0.11509542]
[1732016798353,0.0545759,91693.0,91692.0,0.11509542]
[1732016799678,0.04482369,91693.0,91692.0,0.11509542]
[1732016800174,0.04482369,91693.0,91692.0,0.21509542]
[1732016800643,0.04482369,91693.0,91692.0,0.29592414]
[1732016800893,0.02982369,91693.0,91692.0,0.29492414]
[1732016801101,0.03182369,91693.0,91692.0,0.29592414]
[1732016801565,0.00982369,91693.0,91692.0,0.29392414]
[1732016801811,0.01082369,91693.0,91692.0,0.30692414]
[1732016802023,0.01082369,91693.0,91692.0,0.30092414]
[1732016802282,0.01282369,91693.0,91692.0,0.31092414]
[1732016806806,0.0047096,91693.0,91692.0,0.31092414]
[1732016816981,0.0047096,91693.0,91692.0,0.23009542]
[1732016817212,0.0047096,91693.0,91692.0,0.39175286]
[1732016818148,0.0047096,91693.0,91692.0,0.31092414]
[1732016822644,0.0047096,91693.0,91692.0,0.23009542]
[1732016823151,0.14186181,91693.0,91692.0,0.23009542]
[1732016823772,0.14186181,91693.0,91692.0,0.22309542]
[1732016823773,0.14086181,91693.0,91692.0,0.22309542]
[1732016824188,0.13886181,91693.0,91692.0,0.21309542]
[1732016824609,0.1301096,91693.0,91692.0,0.21509542]
[1732016824842,0.13986181,91693.0,91692.0,0.21509542]
[1732016825542,0.1301096,91693.0,91692.0,0.21509542]
[1732016825775,0.0047096,91693.0,91692.0,0.22109542]
[1732016826229,0.0027096,91693.0,91692.0,0.29592414]
[1732016826445,0.0047096,91693.0,91692.0,0.29692414]
[1732016828034,0.0047096,91693.0,91692.0,0.21609542]
[1732016828507,0.0528096,91693.0,91692.0,0.21609542]
[1732016829929,0.0047096,91693.0,91692.0,0.21609542]
[1732016830149,0.0047096,91693.0,91692.0,0.37472414]
[1732016831397,0.0047096,91693.0,91692.0,0.21609542]
[1732016831840,0.0047096,91693.0,91692.0,0.40598669]
[1732016832056,0.0047096,91693.0,91692.0,0.40623448]
[1732016833116,0.0027096,91693.0,91692.0,0.40523448]
[1732016833370,0.0047096,91693.0,91692.0,0.41123448]
[1732016834193,0.0037096,91693.0,91692.0,0.40923448]
[1732016834408,0.0067096,91693.0,91692.0,0.42023448]
[1732016834669,0.0067096,91693.0,91692.0,1.12023448]
[1732016834880,0.0067096,91693.0,91692.0,1.11998669]
[1732016835105,0.0067096,91693.0,91692.0,1.12023448]
[1732016835558,0.0067096,91693.0,91692.0,0.42023448]
[1732016839077,0.0067096,91693.0,91692.0,0.51804524]